bitfinex-derivatives/quotes_ETHF0:USTF0_20241230
["timestamp","ask_amount","ask_price","bid_price","bid_amount"]
[1735538908859,0.29397,3409.0,3408.6,0.294]
[1735538909159,0.29397,3409.0,3408.4,10.09784567]
[1735538909160,2.34909895,3408.8,3408.4,10.39185567]
[1735538909362,0.5813,3408.7,3408.4,3.50181]
[1735538910357,2.34909895,3408.5,3408.3,6.89004567]
[1735538910555,0.29402,3408.4,3408.3,6.89004567]
[1735538910860,0.90052,3408.4,3408.3,2.48064567]
[1735538911059,0.90052,3408.4,3407.7,0.92237]
[1735538911261,0.90052,3408.4,3407.7,0.6283]
[1735538911262,6.16339895,3408.4,3407.7,0.6283]
[1735538911459,6.16339895,3408.4,3408.1,0.29404]
[1735538911756,6.16339895,3408.4,3408.2,0.88813]
[1735538911954,6.16339895,3408.4,3408.3,0.6257]
[1735538912153,6.16339895,3408.4,3407.6,9.20849418]
[1735538912355,6.45741895,3408.4,3408.0,0.29405]
[1735538912562,0.29404,3408.2,3407.8,1.51387]
[1735538912860,0.29403,3408.3,3407.9,0.29406]
[1735538913058,6.16339895,3408.4,3407.9,0.29406]
[1735538913562,0.29404,3408.2,3407.9,0.29406]
[1735538914067,2.34909895,3408.1,3407.8,1.2198]
[1735538914261,2.34909895,3408.1,3407.9,0.29406]
[1735538914456,2.34909895,3408.1,3407.8,1.2198]
[1735538914756,3.2078,3408.4,3407.8,1.2198]
[1735538914961,3.2078,3408.4,3408.3,0.29403]
[1735538915555,3.2078,3408.4,3408.3,14.59403]
[1735538916863,2.30465066,3408.7,3408.4,0.29402]
[1735538917059,2.96899895,3408.8,3408.5,1.2211]
[1735538917362,2.96899895,3408.8,3408.5,1.51511]
[1735538919565,2.96899895,3408.8,3408.5,1.2211]
[1735538920065,2.96899895,3408.8,3408.5,1.5151]
[1735538920271,2.96899895,3408.8,3408.6,0.294]
[1735538920963,2.96899895,3408.8,3408.5,1.2211]
[1735538921161,2.96899895,3408.8,3408.7,0.29399]
[1735538921959,3.2078,3408.9,3408.8,0.29398]
[1735538923455,0.6196,3409.3,3408.6,0.6134]
[1735538923659,3.2078,3409.5,3409.4,0.29393]
[1735538924868,3.2078,3409.5,3409.3,0.29394]
[1735538925067,3.2078,3409.5,3409.4,1.2025]
[1735538925762,3.2078,3409.5,3409.4,1.49643]
[1735538928367,3.2078,3409.5,3408.6,1.34839]
[1735538928368,0.29394,3409.3,3408.6,0.6134]
[1735538928673,0.29394,3409.3,3408.9,0.29397]
[1735538928869,0.5949,3409.2,3408.9,0.29397]
[1735538929171,2.34909895,3409.1,3408.7,1.1715]
[1735538929369,0.29397,3409.0,3408.7,1.1715]
[1735538929769,0.29397,3409.0,3408.7,1.46549]
[1735538930080,0.29398,3408.8,3408.7,1.1715]
[1735538930266,0.29398,3408.9,3408.7,1.1715]
[1735538930467,0.29398,3408.9,3408.7,0.5727]
[1735538930670,2.34909895,3408.8,3408.7,0.5727]
[1735538930969,2.34909895,3408.8,3408.7,0.86669]
[1735538931164,2.34909895,3408.8,3408.7,0.5727]
[1735538931374,2.34909895,3408.8,3408.7,0.86669]
[1735538931570,2.34909895,3408.8,3408.5,3.2078]
[1735538931877,2.93939895,3408.8,3408.6,0.294]
[1735538932071,2.93939895,3408.8,3408.4,0.29401]
[1735538932269,2.93939895,3408.8,3408.3,0.90483]
[1735538932572,0.29401,3408.6,3408.3,0.90483]
[1735538932871,0.29401,3408.6,3408.3,0.6108]
[1735538933070,0.6003,3408.5,3408.3,0.6108]
[1735538933468,0.6003,3408.5,3408.4,0.29402]
[1735538933667,0.6003,3408.5,3408.3,0.6108]
[1735538936879,0.6003,3408.5,3408.3,0.90483]
[1735538937069,2.93939895,3408.8,3408.3,0.6108]
[1735538937277,0.5903,3408.8,3408.3,0.6108]
[1735538937874,0.5903,3408.8,3408.5,0.294]
[1735538939578,0.5903,3408.8,3408.3,0.6108]
[1735538939778,0.88428,3408.8,3408.4,0.29401]
[1735538939981,0.88428,3408.8,3408.3,0.6108]
[1735538940177,0.88428,3408.8,3408.5,0.29401]
[1735538940582,0.5903,3408.8,3408.5,0.29401]
[1735538940881,0.5903,3408.8,3408.3,0.6108]
[1735538941085,0.5903,3408.8,3408.5,0.294]
[1735538941281,0.5903,3408.8,3408.3,0.6108]
[1735538941482,0.5903,3408.8,3408.6,0.294]
[1735538942681,3.7881,3408.9,3408.7,0.29399]
[1735538942980,3.7881,3408.9,3408.4,0.5702]
[1735538942981,3.7881,3408.9,3408.6,0.294]
[1735538943178,4.08208,3408.9,3408.6,0.294]
[1735538943875,6.38673066,3408.9,3408.6,0.294]
[1735538944680,6.38673066,3408.9,3408.4,0.5702]
[1735538944981,6.09275066,3408.9,3408.7,0.29399]
[1735538947484,6.09275066,3408.9,3408.8,0.29398]
[1735538948582,4.08208,3408.9,3408.7,0.29399]
[1735538949075,2.64308895,3408.8,3408.6,0.294]
[1735538949280,3.2078,3408.9,3408.8,0.29398]
[1735538949682,6.66748203,3408.9,3408.8,0.29398]
[1735538950384,6.66748203,3408.9,3408.7,0.29399]
[1735538950586,1.2446,3408.8,3408.7,0.29399]
[1735538950883,1.2446,3408.8,3408.6,0.29399]
[1735538951075,1.2446,3408.8,3408.7,0.29399]
[1735538951279,1.53859,3408.8,3408.6,0.294]
[1735538951777,1.53859,3408.8,3408.7,0.29399]
[1735538951778,1.2446,3408.8,3408.7,0.29399]
[1735538951978,2.93191853,3408.8,3408.7,0.29399]
[1735538952878,2.30791853,3408.8,3408.7,0.29399]
[1735538954090,3.45968203,3409.0,3408.6,3.2078]
[1735538954382,3.45968203,3409.0,3408.9,0.29398]
[1735538954781,3.45968203,3409.0,3408.6,3.2078]
[1735538954782,3.2078,3409.3,3408.7,4.09760292]
[1735538955089,3.2078,3409.3,3409.2,0.29395]
[1735538955283,3.45968203,3409.6,3409.0,3.2078]
[1735538955486,3.45968203,3409.6,3409.5,0.29392]
[1735538956383,4.4213,3409.8,3409.5,0.29392]
[1735538956784,4.4213,3409.8,3409.6,0.6252]
[1735538957180,4.7152,3409.8,3409.6,0.6252]
[1735538957386,4.4213,3409.8,3409.6,0.6252]
[1735538958385,4.4213,3409.8,3409.6,0.91911]
[1735538959885,4.4213,3409.8,3409.6,0.6252]
[1735538960091,4.4213,3409.8,3409.7,0.29391]
[1735538960388,4.4213,3409.8,3409.6,0.91911]
[1735538960585,4.4213,3409.8,3409.6,0.6252]
[1735538960784,4.4213,3409.8,3409.1,0.5992]
[1735538960995,0.29393,3409.5,3409.2,0.90464]
[1735538961291,0.29393,3409.5,3409.3,0.29394]
[1735538961489,6.77039895,3409.8,3409.2,0.6107]
[1735538961688,6.77039895,3409.8,3409.6,0.29391]
[1735538962084,7.06429895,3409.8,3409.2,0.6107]
[1735538962284,7.06429895,3409.8,3409.6,0.29391]
[1735538962788,4.4213,3409.8,3409.7,0.29391]
[1735538967094,4.4213,3409.8,3409.6,0.29391]
[1735538967798,4.4213,3409.8,3409.2,0.6107]
[1735538967992,0.29392,3409.6,3409.3,0.29393]
[1735538968296,0.29392,3409.6,3409.4,0.29393]
[1735538968595,0.29391,3409.7,3409.4,0.29393]
[1735538968993,4.4213,3409.8,3409.2,0.6107]
[1735538969295,4.4213,3409.8,3409.6,0.29391]
[1735538970298,4.7152,3409.8,3409.5,0.29392]
[1735538970595,4.7152,3409.8,3409.6,0.29391]
[1735538970796,4.7152,3409.8,3409.4,0.6213]
[1735538970997,4.4213,3409.8,3409.6,0.29391]
[1735538973405,1.2135,3409.8,3409.6,0.29391]
[1735538973996,0.29392,3409.6,3409.4,3.2078]
[1735538974195,0.29392,3409.6,3409.4,3.50173]
[1735538974998,1.2135,3409.8,3409.4,3.2078]
[1735538975199,1.2135,3409.8,3409.5,0.29392]
[1735538975200,1.50741,3409.8,3409.5,0.29392]
[1735538976903,0.29391,3409.7,3409.5,0.29392]
[1735538977296,1.2135,3409.8,3409.4,3.2078]
[1735538978004,1.5074,3409.8,3409.6,0.29391]
[1735538978298,1.2135,3409.8,3409.4,3.2078]
[1735538978598,0.29391,3409.7,3409.5,0.29392]
[1735538979407,1.2135,3409.8,3409.2,0.6107]
[1735538979902,1.2135,3409.8,3409.6,0.29391]
[1735538980406,1.2135,3409.8,3409.2,0.6107]
[1735538980703,1.5074,3409.8,3409.5,0.29392]
[1735538984905,0.29391,3409.7,3409.5,0.29392]
[1735538986610,1.5074,3409.8,3409.5,0.29392]
[1735538987107,1.5074,3409.8,3409.6,0.29391]
[1735538988207,2.54224823,3409.8,3409.6,0.29391]
[1735538988709,0.6263,3409.8,3409.7,0.29391]
[1735538992812,4.49453026,3409.9,3409.8,0.2939]
[1735538994202,1.47582864,3409.9,3409.8,0.2939]
[1735538995612,1.03484823,3409.9,3409.8,0.2939]
[1735538996712,1.47582864,3409.9,3409.8,0.2939]
[1735538998112,6.09516209,3409.9,3409.8,0.2939]
[1735538998706,6.09516209,3409.9,3409.5,0.5937]
[1735538998913,6.09516209,3409.9,3409.4,4.57694253]
[1735538999114,0.29391,3409.7,3409.5,0.29392]
[1735538999410,0.5469,3409.6,3409.5,0.29392]
[1735538999714,0.5469,3409.6,3409.5,4.87086253]
[1735539000815,4.61933345,3409.7,3409.6,0.29391]
[1735539002114,4.61933345,3409.7,3409.6,4.88707944]
[1735539003115,4.61933345,3409.7,3409.6,4.59316944]
[1735539003512,5.06032428,3409.7,3409.6,4.59316944]
[1735539003815,5.06032428,3409.7,3409.6,4.88708944]
[1735539004905,4.61933345,3409.7,3409.6,4.88708944]
[1735539005107,4.61933345,3409.7,3409.6,4.59316944]
[1735539005304,4.91324345,3409.7,3409.6,4.59316944]
[1735539006410,0.73490083,3409.7,3409.5,4.88708944]
[1735539006610,0.5584,3409.6,3409.5,4.88708944]
[1735539008012,5.62834694,3409.6,3409.5,9.04953436]
[1735539009512,5.06994694,3409.6,3409.5,9.04953436]
[1735539009712,5.06994694,3409.6,3409.5,4.45636492]
[1735539010916,3.47175441,3409.6,3409.5,4.45636492]
[1735539012513,5.06994694,3409.7,3409.6,0.29391]
[1735539012713,5.06994694,3409.7,3409.6,0.86351]
[1735539013618,5.06994694,3409.8,3409.6,9.61731388]
[1735539014724,5.06994694,3409.8,3409.6,5.45486896]
[1735539015314,0.29391,3409.7,3409.6,4.59135896]
[1735539015519,0.85361,3409.7,3409.6,4.59135896]
[1735539016323,5.92355694,3409.7,3409.6,4.59135896]
[1735539022433,5.92355694,3409.7,3409.4,4.88528896]
[1735539022434,0.29392,3409.6,3409.4,4.88528896]
[1735539022728,0.88852,3409.6,3409.4,4.88528896]
[1735539022932,1.62944823,3409.6,3409.4,4.88528896]
[1735539023235,0.5946,3409.6,3409.5,0.29392]
[1735539023431,5.77573657,3409.7,3409.4,4.59135896]
[1735539023635,5.77573657,3409.7,3409.6,0.29392]
[1735539024632,4.62814404,3409.7,3409.6,4.88527896]
[1735539027128,5.95690227,3409.7,3409.6,4.59135896]
[1735539027329,1.94135823,3409.7,3409.6,4.59135896]
[1735539028435,1.64744823,3409.7,3409.6,4.88527896]
[1735539028633,1.64744823,3409.7,3409.6,5.48087896]
[1735539029035,1.64744823,3409.7,3409.6,0.88952]
[1735539029036,6.7165921,3409.7,3409.6,0.88952]
[1735539029239,6.1039921,3409.7,3409.6,1.50272]
[1735539030336,6.1039921,3409.7,3409.6,6.09407896]
[1735539030538,5.06914387,3409.7,3409.6,6.09407896]
[1735539031534,4.62814404,3409.7,3409.6,6.09407896]
[1735539034331,4.62814404,3409.7,3409.6,5.80015896]
[1735539035134,5.21574404,3409.7,3409.6,5.18695896]
[1735539035839,5.649781,3409.7,3409.6,0.5956]
[1735539036944,0.5876,3409.7,3409.6,0.5956]
[1735539038141,1.02859983,3409.7,3409.6,0.88952]
[1735539038736,1.02859983,3409.7,3409.6,0.29392]
[1735539040441,1.02859983,3409.7,3409.6,4.88527896]
[1735539041146,0.44099983,3409.7,3409.6,4.88527896]
[1735539041739,0.44099983,3409.7,3409.6,5.92012719]
[1735539041939,3.47065664,3409.7,3409.6,10.19814327]
[1735539042143,0.68815664,3409.7,3409.6,11.65806327]
[1735539042341,2.7751963,3409.9,3409.8,0.2939]
[1735539042538,2.7751963,3409.9,3409.8,4.53654823]
[1735539042837,2.7751963,3409.9,3409.8,23.83654823]
[1735539043235,2.7751963,3409.9,3409.8,24.87139646]
[1735539043436,2.7751963,3409.9,3409.8,23.83654823]
[1735539043637,2.7751963,3409.9,3409.8,18.83654823]
[1735539044043,0.5918,3410.7,3409.8,31.30596885]
[1735539044249,0.5918,3410.7,3410.6,0.29383]
[1735539045743,0.5918,3410.7,3410.5,4.5806611]
[1735539045947,0.5918,3410.7,3410.6,0.29383]
[1735539046249,0.5918,3410.7,3410.5,7.7884611]
[1735539046443,1.59474823,3410.6,3410.5,7.7884611]
[1735539046641,4.80254823,3410.6,3410.5,4.5806611]
[1735539046944,4.80254823,3410.6,3410.4,4.5806611]
[1735539047142,1.03484823,3410.5,3410.4,4.5806611]
[1735539047348,1.32868823,3410.5,3410.4,0.2393611]
[1735539047544,0.29385,3410.3,3410.2,5.25645275]
[1735539047744,1.32869823,3410.3,3410.2,5.25645275]
[1735539048450,0.29388,3410.0,3409.6,0.29391]
[1735539048651,1.03484823,3409.7,3409.6,0.29391]
[1735539050343,3.2078,3409.9,3409.2,1.1338]
[1735539050540,0.6075,3409.8,3409.5,0.29392]
[1735539050746,1.7752,3409.8,3409.5,0.29392]
[1735539051249,1.7752,3409.8,3409.2,1.1338]
[1735539051451,1.7752,3409.8,3409.4,0.29393]
[1735539051650,1.7752,3409.8,3409.6,0.29391]
[1735539052350,1.7752,3409.8,3409.4,0.29393]
[1735539052749,1.7752,3409.8,3409.5,0.29392]
[1735539053047,1.7752,3409.8,3409.4,0.29393]
[1735539054149,1.7752,3409.8,3409.2,1.1338]
[1735539054349,1.7752,3409.8,3409.5,0.29392]
[1735539054653,1.7752,3409.8,3409.2,1.1338]
[1735539054842,0.29391,3409.7,3409.2,1.42774]
[1735539055040,0.29391,3409.7,3409.3,0.29394]
[1735539056548,1.7752,3409.8,3409.2,1.1338]
[1735539057156,1.7752,3409.8,3409.5,0.29392]
[1735539057445,1.7752,3409.8,3409.2,1.1338]
[1735539057446,1.7752,3409.8,3409.6,0.29391]
[1735539058045,1.7752,3409.8,3409.5,0.29392]
[1735539058245,2.0691,3409.8,3409.4,0.29393]
[1735539058541,2.0691,3409.8,3409.2,1.1338]
[1735539058740,2.0691,3409.8,3409.5,0.29392]
[1735539060249,1.7752,3409.8,3409.2,1.1338]
[1735539060446,1.7752,3409.8,3409.7,0.29391]
[1735539061553,3.2078,3409.9,3409.8,0.2939]
[1735539062045,5.77573657,3410.3,3409.7,3.2078]
[1735539062252,5.77573657,3410.3,3410.2,0.29386]
[1735539062440,5.77573657,3410.3,3410.2,3.50166]
[1735539062639,5.77573657,3410.3,3410.2,17.80166]
[1735539063054,5.77573657,3410.3,3410.2,3.50166]
[1735539063254,2.08101,3410.8,3410.2,3.2078]
[1735539063446,2.08101,3410.8,3410.5,0.29383]
[1735539064249,1.7872,3410.8,3410.2,17.5078]
[1735539064451,0.29383,3410.7,3410.2,17.5078]
[1735539064649,2.08101,3410.8,3410.5,0.29383]
[1735539065051,1.7872,3410.8,3410.2,17.5078]
[1735539065252,0.29382,3410.7,3410.2,17.5078]
[1735539065447,0.29382,3410.7,3410.5,0.29384]
[1735539065752,0.29382,3410.7,3410.4,0.29384]
[1735539066149,1.7872,3410.8,3410.2,17.5078]
[1735539066353,1.7872,3410.8,3410.6,0.29382]
[1735539067851,2.08102,3410.8,3410.5,0.29383]
[1735539068753,2.08102,3410.8,3410.6,0.29383]
[1735539075256,0.29382,3410.7,3410.5,0.29383]
[1735539075454,0.29384,3410.5,3410.4,0.597]
[1735539075762,0.29385,3410.4,3410.3,0.597]
[1735539076154,4.14148825,3410.8,3410.3,0.597]
[1735539076364,0.29382,3410.7,3410.4,0.29384]
[1735539076562,0.29384,3410.6,3410.4,0.29384]
[1735539076762,2.59878446,3410.6,3410.4,0.29384]
[1735539076959,2.59878446,3410.6,3410.3,1.2078]
[1735539077160,0.29384,3410.5,3410.3,1.50165]
[1735539078961,0.29384,3410.5,3410.3,1.2078]
[1735539079368,0.29384,3410.5,3410.3,1.50165]
[1735539079765,0.29384,3410.5,3410.3,1.2078]
[1735539080071,0.29384,3410.5,3410.3,1.50165]
[1735539081167,0.29384,3410.5,3410.3,1.2078]
[1735539084776,2.30494446,3410.6,3410.3,1.2078]
[1735539084777,2.59877446,3410.6,3410.3,1.50165]
[1735539085679,2.30494446,3410.6,3410.3,1.2078]
[1735539085978,2.30494446,3410.6,3410.4,0.29384]
[1735539087074,2.59877446,3410.6,3410.4,0.29384]
[1735539087374,2.30494446,3410.6,3410.3,1.2078]
[1735539088285,2.30494446,3410.6,3410.5,0.29384]
[1735539091083,2.30494446,3410.6,3410.4,0.29384]
[1735539091380,2.30494446,3410.6,3410.5,0.29384]
[1735539094280,2.30494446,3410.6,3410.5,1.32813218]
[1735539094584,0.74494446,3410.6,3410.5,6.32813218]
[1735539094779,4.61027769,3410.9,3410.5,6.03429218]
[1735539095083,2.78957769,3410.9,3410.8,4.53590218]
[1735539095283,1.88797769,3410.9,3410.8,4.53590218]
[1735539095485,0.80807769,3410.9,3410.8,24.87019436]
[1735539095981,0.5783,3411.8,3410.8,23.54209218]
[1735539096178,0.5783,3411.8,3411.6,0.29374]
[1735539096882,0.5783,3411.8,3411.4,3.2078]
[1735539097078,0.29373,3411.7,3411.4,3.50156]
[1735539097385,0.29373,3411.7,3411.4,3.2078]
[1735539097577,0.87203,3411.8,3411.4,3.2078]
[1735539097778,0.5783,3411.8,3411.5,0.29374]
[1735539098580,0.5783,3411.8,3411.5,0.29375]
[1735539098980,0.87203,3411.8,3411.5,0.29375]
[1735539099378,0.29374,3411.7,3411.4,3.50156]
[1735539099584,0.29374,3411.7,3411.5,0.29375]
[1735539099886,0.5783,3411.8,3411.5,0.29375]
[1735539100085,0.87203,3411.8,3411.5,0.29375]
[1735539100386,0.87203,3411.8,3411.6,0.29374]
[1735539100585,0.5783,3411.8,3411.4,3.2078]
[1735539100883,0.5783,3411.8,3411.6,0.29374]
[1735539102386,0.5783,3411.8,3411.4,3.2078]
[1735539102387,0.87203,3411.8,3411.5,0.29375]
[1735539103084,0.5783,3411.8,3411.6,0.29374]
[1735539103787,0.5783,3411.8,3411.7,0.29373]
[1735539103985,3.2078,3411.9,3411.4,5.55904157]
[1735539104189,3.2078,3411.9,3411.8,0.29373]
[1735539105183,3.45433954,3412.3,3411.8,3.2078]
[1735539105492,0.5872,3412.4,3412.1,0.29369]
[1735539105688,0.5872,3412.4,3412.2,0.29369]
[1735539105888,0.5872,3412.4,3412.2,14.59369]
[1735539106790,0.5872,3412.4,3412.2,14.3]
[1735539107385,0.5872,3412.4,3412.2,0.29369]
[1735539107591,0.5872,3412.4,3412.3,0.29368]
[1735539109793,0.5872,3412.4,3412.2,0.29369]
[1735539109989,0.5872,3412.4,3412.3,0.29368]
[1735539112095,0.5872,3412.4,3411.8,3.2078]
[1735539112398,0.5872,3412.4,3412.3,0.29368]
[1735539113088,0.89084527,3412.4,3411.8,3.2078]
[1735539113294,0.89084527,3412.4,3412.3,0.29368]
[1735539114098,0.89084527,3412.4,3412.3,11.59368]
[1735539118301,0.89084527,3412.4,3412.3,0.29368]
[1735539118698,0.89084527,3412.4,3412.3,11.59368]
[1735539122006,0.5872,3412.4,3412.3,11.59368]
[1735539124109,0.5872,3412.4,3412.3,0.29368]
[1735539136401,3.45433954,3413.0,3412.3,0.29368]
[1735539136402,3.45433954,3413.0,3412.9,0.29363]
[1735539136602,3.45433954,3413.0,3412.9,1.32669721]
[1735539137206,3.45433954,3413.0,3412.9,0.29363]
[1735539138911,1.638,3413.1,3412.9,0.29363]
[1735539139209,1.638,3413.1,3412.8,0.29363]
[1735539140001,1.93162,3413.1,3412.8,0.29363]
[1735539140303,1.638,3413.1,3412.8,0.29363]
[1735539142006,1.638,3413.1,3412.9,0.29363]
[1735539142007,5.09233954,3413.1,3412.9,0.29363]
[1735539142310,0.29363,3413.0,3412.7,0.29364]
[1735539142506,3.2078,3412.9,3412.7,0.29364]
[1735539144506,3.50143,3412.9,3412.5,0.29366]
[1735539145409,3.50143,3412.9,3412.3,11.3]
[1735539145609,3.50143,3412.9,3412.6,0.29366]
[1735539145908,6.95576954,3412.9,3412.6,0.29366]
[1735539147114,3.45433954,3412.8,3412.6,0.29366]
[1735539148311,5.80381324,3412.8,3412.0,6.83163467]
[1735539148614,0.29368,3412.4,3412.1,0.29369]
[1735539148802,1.1323,3412.3,3412.1,0.29369]
[1735539149115,1.1323,3412.3,3412.0,6.83163467]
[1735539149409,0.5748,3412.2,3412.0,6.83163467]
[1735539149616,0.86849,3412.2,3412.0,6.83163467]
[1735539150310,0.5748,3412.2,3411.9,0.29371]
[1735539150612,0.5748,3412.2,3411.8,3.38861435]
[1735539150813,0.5748,3412.2,3412.0,0.2937]
[1735539151410,0.5748,3412.2,3411.8,3.38861435]
[1735539151612,4.02913954,3412.2,3412.1,0.2937]
[1735539152213,4.02913954,3412.2,3412.1,11.5937]
[1735539153205,0.5748,3412.2,3412.1,11.5937]
[1735539153417,0.5748,3412.2,3412.1,0.2937]
[1735539154413,0.5748,3412.2,3412.0,0.2937]
[1735539154616,0.5748,3412.2,3412.1,0.2937]
[1735539154920,4.02913954,3412.2,3412.1,0.2937]
[1735539155306,4.02913954,3412.2,3411.8,3.38861435]
[1735539155511,4.32282954,3412.2,3411.9,0.29371]
[1735539155918,4.02913954,3412.2,3411.9,0.29371]
[1735539156719,4.32283954,3412.2,3411.9,0.29371]
[1735539157511,4.02913954,3412.2,3411.8,3.50152]
[1735539157718,4.32282954,3412.2,3411.9,0.29372]
[1735539158014,4.02913954,3412.2,3411.8,3.2078]
[1735539158216,0.2937,3412.1,3411.8,3.2078]
[1735539158610,0.29371,3412.1,3411.7,0.29373]
[1735539159017,3.50152,3411.8,3411.4,18.13163467]
[1735539159322,0.4823,3411.7,3411.5,0.29375]
[1735539159517,1.5439,3411.7,3411.4,18.13163467]
[1735539159716,0.29375,3411.6,3411.4,6.83163467]
[1735539160420,0.29375,3411.6,3411.3,0.29377]
[1735539162816,3.2078,3411.4,3411.3,0.29377]
[1735539165221,3.2078,3411.4,3411.1,0.29378]
[1735539165817,3.2078,3411.4,3411.2,0.29377]
[1735539167814,3.2078,3411.4,3411.0,11.3]
[1735539168014,3.2078,3411.4,3411.3,0.29377]
[1735539169918,1.5439,3411.7,3411.3,2.3494737]
[1735539170122,1.5439,3411.7,3411.6,0.29374]
[1735539171624,0.9634,3411.7,3411.6,0.29374]
[1735539171929,0.4811,3411.7,3411.6,0.29374]
[1735539176933,0.4811,3411.7,3411.0,4.55956678]
[1735539177235,0.29375,3411.6,3411.2,0.29377]
[1735539177734,0.4855,3411.5,3411.2,0.29377]
[1735539177933,0.4806,3411.4,3411.2,0.29377]
[1735539178831,0.4806,3411.4,3411.3,0.29377]
[1735539180237,0.4806,3411.4,3410.9,3.2078]
[1735539180428,0.4806,3411.4,3411.1,0.29378]
[1735539180628,0.4806,3411.4,3410.9,3.2078]
[1735539180934,0.4806,3411.4,3411.2,0.29377]
[1735539181136,0.4806,3411.4,3411.3,0.29377]
[1735539181738,0.4855,3411.5,3411.1,2.3494737]
[1735539181936,1.004,3411.7,3411.6,0.29374]
[1735539184039,3.2078,3411.8,3411.7,0.29373]
[1735539184331,6.66213954,3412.2,3412.1,0.2937]
[1735539184540,6.66213954,3412.2,3412.1,2.6431737]
[1735539184740,3.45433954,3412.2,3412.1,2.6431737]
[1735539185136,3.94143954,3412.5,3412.1,13.6494737]
[1735539185343,3.94143954,3412.5,3412.4,0.29367]
[1735539187041,0.4871,3412.5,3412.4,0.29367]
[1735539187542,0.4871,3412.5,3412.1,13.6494737]
[1735539187737,0.4871,3412.5,3412.2,0.29369]
[1735539188043,0.4871,3412.5,3412.3,0.29367]
[1735539188241,0.4871,3412.5,3412.4,0.29367]
[1735539189432,0.4871,3412.5,3412.3,0.29368]
[1735539190741,0.4871,3412.5,3411.9,11.3]
[1735539191144,0.4871,3412.5,3412.4,0.29367]
[1735539191544,0.4871,3412.5,3412.3,0.29367]
[1735539191843,0.4871,3412.5,3412.4,0.29367]
[1735539192743,0.4871,3412.5,3411.9,11.3]
[1735539192744,0.4871,3412.5,3412.3,0.29367]
[1735539194547,0.4871,3412.5,3411.9,11.3]
[1735539194748,0.4871,3412.5,3412.4,0.29367]
[1735539195844,0.4871,3412.5,3412.3,0.29368]
[1735539196344,0.4871,3412.5,3412.4,0.29367]
[1735539201648,4.46243954,3412.6,3412.5,0.29366]
[1735539201849,1.0081,3412.6,3412.5,0.29366]
[1735539202959,6.66213954,3412.7,3412.6,0.29366]
[1735539203547,3.2078,3412.7,3412.6,0.29366]
[1735539204250,0.5549,3412.9,3412.8,0.29364]
[1735539207955,1.0513,3413.0,3412.9,0.29363]
[1735539209863,0.566,3413.4,3413.3,0.2936]
[1735539210059,0.566,3413.4,3413.3,2.6430737]
[1735539210253,0.566,3413.4,3413.3,13.9430737]
[1735539210950,3.45433954,3413.5,3413.3,13.6494737]
[1735539211157,3.2078,3413.7,3413.6,0.29357]
[1735539211353,3.2078,3413.7,3413.6,2.6430437]
[1735539216463,1.6763,3414.0,3413.9,0.29354]
[1735539216760,0.566,3414.0,3413.9,2.6430137]
[1735539217465,2.29904778,3414.2,3414.1,0.29353]
[1735539217661,0.5371,3414.3,3413.9,2.3494737]
[1735539217662,0.5371,3414.3,3414.0,3.2078]
[1735539217971,2.29904778,3414.7,3414.6,0.29348]
[1735539218172,2.29904778,3414.7,3414.5,2.3494737]
[1735539218566,2.29904778,3414.7,3414.5,0.29349]
[1735539218875,3.2078,3414.8,3414.5,0.29349]
[1735539220068,3.2078,3414.8,3414.3,11.3]
[1735539220273,3.2078,3414.8,3414.6,0.29348]
[1735539220773,3.2078,3414.8,3414.5,0.29349]
[1735539220973,3.2078,3414.8,3414.6,0.29348]
[1735539221379,3.2078,3414.8,3414.2,2.3494737]
[1735539221575,3.2078,3414.8,3414.7,0.29347]
[1735539223569,0.5586,3414.9,3414.6,2.3494737]
[1735539223771,0.5586,3414.9,3414.8,0.29347]
[1735539227277,0.5335,3415.1,3415.0,0.29345]
[1735539228776,0.5335,3415.1,3414.7,3.2078]
[1735539229187,0.5335,3415.1,3414.8,0.29346]
[1735539230483,0.5335,3415.1,3414.6,2.3494737]
[1735539230684,0.5335,3415.1,3414.7,0.29347]
[1735539230879,0.5335,3415.1,3414.8,0.29346]
[1735539231382,0.5335,3415.1,3414.9,0.29346]
[1735539231585,0.5335,3415.1,3414.6,2.3494737]
[1735539231885,0.5335,3415.1,3414.8,0.29346]
[1735539232980,0.5335,3415.1,3414.9,0.29346]
[1735539235383,0.5335,3415.1,3414.8,0.29346]
[1735539235581,0.29345,3415.0,3414.7,0.29347]
[1735539235777,0.29345,3415.0,3414.6,2.3494737]
[1735539235977,0.5335,3415.1,3414.6,2.3494737]
[1735539236381,0.5335,3415.1,3414.9,0.29346]
[1735539237294,0.5335,3415.1,3414.6,2.3494737]
[1735539237582,0.5335,3415.1,3415.0,0.29345]
[1735539238986,0.5335,3415.1,3415.0,11.59345]
[1735539245588,0.5334,3415.3,3414.9,5.5572737]
[1735539245789,0.539,3415.4,3415.2,2.3494737]
[1735539245990,0.539,3415.4,3415.3,0.29342]
[1735539246397,3.45433954,3415.9,3415.7,0.29339]
[1735539246693,3.45433954,3415.9,3415.7,3.50119]
[1735539247694,0.5708,3416.2,3416.0,0.29336]
[1735539248089,0.5708,3416.2,3416.1,11.3]
[1735539248691,3.7786,3416.2,3415.8,0.29338]
[1735539249192,3.7786,3416.2,3415.8,11.59338]
[1735539249493,0.00374087,3416.1,3415.8,11.59338]
[1735539250096,0.00374087,3416.1,3415.8,0.29338]
[1735539250592,0.00374087,3416.1,3415.9,0.29337]
[1735539252493,0.00374087,3416.1,3415.7,14.5078]
[1735539253094,0.00374087,3416.1,3416.0,0.29336]
[1735539253794,0.00374087,3416.1,3415.9,0.29337]
[1735539255599,0.00374087,3416.1,3416.0,0.29336]
[1735539256591,0.00374087,3416.1,3416.0,11.59336]
[1735539266496,0.00374087,3416.1,3416.0,13.9428337]
[1735539267295,0.00374087,3416.1,3416.0,14.2435337]